[Event "LJ Slovak Open 2022"]
[Site "Liptovsky Jan"]
[Date "2022.06.24"]
[Round "3.10"]
[White "Rucek, Peter"]
[Black "Wisniewski, Michal"]
[Result "0-1"]
[ECO "A58"]
[WhiteElo "1899"]
[BlackElo "2073"]
[Annotator "NA RC"]
[PlyCount "102"]
[EventDate "2022.06.23"]
[EventType "swiss"]
[EventCountry "SVK"]
[SourceTitle "playchess.com"]
[Source "ChessBase"]
[SourceQuality "1"]
[TimeControl "3600+30"]

1. d4 {[%emt 0:00:07]} Nf6 {[%emt 0:00:29]} 2. c4 {[%emt 0:00:06]} c5 {[%emt 0:00:05]} 3. d5 {[%emt 0:00:06]} b5 {[%emt 0:00:05]} 4. cxb5 {[%emt 0:00:05]} a6 {[%emt 0:00:03]} 5. bxa6 {[%emt 0:00:07]} g6 {[%emt 0:00:05]} 6. Nc3 {[%emt 0:00:05]} Bg7 {[%emt 0:00:05]} 7. e4 {[%emt 0:00:06]} O-O {[%emt 0:00:05]} 8. Bc4 {[%emt 0:00:04]} Qa5 {[%emt 0:06:37]} 9. a7 {[%emt 0:00:28]} Nxe4 {[%emt 0:10:54]} 10. axb8=Q {[%emt 0:00:33]} Rxb8 {[%emt 0:00:03]} 11. Nge2 {[%emt 0:00:45]} Nxc3 {[%emt 0:00:50]} 12. bxc3 {[%emt 0:03:32]} Bxc3+ {[%emt 0:00:43]} 13. Bd2 {[%emt 0:00:19]} Bxd2+ {[%emt 0:00:40]} 14. Qxd2 {[%emt 0:00:06]} Qa4 {[%emt 0:00:03]} 15. Qc3 {[%emt 0:02:42]} Rb4 {[%emt 0:00:24]} 16. Bd3 {[%emt 0:03:01]} Ba6 {[%emt 0:01:21]} 17. O-O {[%emt 0:00:50]} Bxd3 {[%emt 0:01:01]} 18. Qxd3 {[%emt 0:00:01]} Rfb8 {[%emt 0:00:06]} 19. h3 {[%emt 0:15:24]} Rb2 {[%emt 0:02:38]} 20. Rfb1 {[%emt 0:02:32]} Qb4 {[%emt 0:00:59]} 21. Rxb2 {[%emt 0:01:21]} Qxb2 {[%emt 0:00:02]} 22. Qd1 {[%emt 0:00:50]} c4 {[%emt 0:01:15]} 23. Kf1 {[%emt 0:05:16]} Rb5 {[%emt 0:06:10]} 24. Qd4 {[%emt 0:11:11]} Qxd4 {[%emt 0:01:34]} 25. Nxd4 {[%emt 0:00:01]} Rxd5 {[%emt 0:00:07]} 26. a4 {[%emt 0:01:33]} Rxd4 {[%emt 0:00:09]} 27. a5 {[%emt 0:00:06]} c3 {[%emt 0:00:30]} 28. a6 {[%emt 0:00:45]} c2 {[%emt 0:00:00]} 29. Ke2 {[%emt 0:00:39]} Ra4 {[%emt 0:00:00]} 30. Rc1 {[%emt 0:00:51]} Rxa6 {[%emt 0:00:00]} 31. Rxc2 {[%emt 0:00:02]} d5 {[%emt 0:00:00]} 32. Rc7 {[%emt 0:00:55]} e6 {[%emt 0:00:02]} 33. Ke3 {[%emt 0:00:07]} Kg7 {[%emt 0:00:05]} 34. h4 {[%emt 0:00:08]} Kf6 {[%emt 0:00:40]} 35. g3 {[%emt 0:00:04]} e5 {[%emt 0:00:17]} 36. Rb7 {[%emt 0:01:13]} h5 {[%emt 0:00:11]} 37. Rc7 {[%emt 0:00:12]} Ke6 {[%emt 0:00:05]} 38. Rb7 {[%emt 0:00:47]} Ra3+ {[%emt 0:00:24]} 39. Ke2 {[%emt 0:00:06]} Ra2+ {[%emt 0:00:24]} 40. Kf3 {[%emt 0:01:52]} f6 {[%emt 0:00:40]} 41. Rb5 {[%emt 0:04:50]} d4 {[%emt 0:00:52]} 42. Rb6+ {[%emt 0:00:18]} Kf5 {[%emt 0:00:05]} 43. Rb5 {[%emt 0:00:07]} Ra3+ {[%emt 0:00:51]} 44. Ke2 {[%emt 0:00:18]} Ke4 {[%emt 0:00:57]} 45. Rb6 {[%emt 0:06:55]} f5 {[%emt 0:01:35]} 46. Rxg6 {[%emt 0:01:21]} d3+ {[%emt 0:00:10]} 47. Ke1 {[%emt 0:00:22]} Ra1+ {[%emt 0:00:05]} 48. Kd2 {[%emt 0:00:10]} Ra2+ {[%emt 0:00:02]} 49. Ke1 {[%emt 0:00:54]} Re2+ {[%emt 0:00:06]} 50. Kf1 {[%emt 0:00:45]} Kf3 {[%emt 0:00:08]} 51. Rd6 {[%emt 0:01:29]} e4 {[%emt 0:00:06]} 0-1

[Event "LJ Slovak Open 2022"]
[Site "Liptovsky Jan"]
[Date "2022.06.24"]
[Round "3.11"]
[White "Koska, Jiri"]
[Black "Hurtuk, Radovan"]
[Result "0-1"]
[ECO "B90"]
[WhiteElo "1759"]
[BlackElo "2057"]
[Annotator "NA RC"]
[PlyCount "96"]
[EventDate "2022.06.23"]
[EventType "swiss"]
[EventCountry "SVK"]
[SourceTitle "playchess.com"]
[Source "ChessBase"]
[SourceQuality "1"]
[TimeControl "3600+30"]

1. e4 {[%emt 0:00:02]} c5 {[%emt 0:00:09]} 2. Nf3 {[%emt 0:00:07]} d6 {[%emt 0:00:07]} 3. Nc3 {[%emt 0:00:36]} Nf6 {[%emt 0:00:31]} 4. d4 {[%emt 0:00:04]} cxd4 {[%emt 0:00:20]} 5. Nxd4 {[%emt 0:00:08]} a6 {[%emt 0:00:44]} 6. Qf3 {[%emt 0:00:56]} g6 {[%emt 0:02:51]} 7. Be3 {[%emt 0:01:21]} Bg7 {[%emt 0:00:16]} 8. h3 {[%emt 0:00:24]} Nbd7 {[%emt 0:01:25]} 9. O-O-O {[%emt 0:07:46]} Qc7 {[%emt 0:00:05]} 10. g4 {[%emt 0:01:59]} b5 {[%emt 0:02:06]} 11. Qg2 {[%emt 0:04:52]} Bb7 {[%emt 0:00:10]} 12. Bd3 {[%emt 0:04:11]} Nc5 {[%emt 0:01:26]} 13. Kb1 {[%emt 0:01:18]} b4 {[%emt 0:00:50]} 14. Nd5 {[%emt 0:01:02]} Nxd5 {[%emt 0:00:17]} 15. exd5 {[%emt 0:00:06]} Nxd3 {[%emt 0:01:47]} 16. Rxd3 {[%emt 0:01:08]} e6 {[%emt 0:02:52]} 17. Nc6 {[%emt 0:03:47]} Bxc6 {[%emt 0:00:05]} 18. dxc6 {[%emt 0:00:08]} d5 {[%emt 0:00:22]} 19. Bd4 {[%emt 0:03:42]} Bxd4 {[%emt 0:00:30]} 20. Rxd4 {[%emt 0:00:00]} a5 {[%emt 0:00:31]} 21. h4 {[%emt 0:01:30]} Qxc6 {[%emt 0:00:15]} 22. Re1 {[%emt 0:01:01]} O-O {[%emt 0:00:31]} 23. h5 {[%emt 0:00:10]} Rfc8 {[%emt 0:00:36]} 24. f4 {[%emt 0:00:53]} Qc5 {[%emt 0:00:22]} 25. Rd3 {[%emt 0:00:19]} Ra6 {[%emt 0:04:28]} 26. hxg6 {[%emt 0:04:21]} fxg6 {[%emt 0:00:37]} 27. f5 {[%emt 0:04:21]} Rf8 {[%emt 0:18:50]} 28. Rf3 {[%emt 0:13:27]} exf5 {[%emt 0:02:05]} 29. gxf5 {[%emt 0:00:53]} Raf6 {[%emt 0:00:17]} 30. Ref1 {[%emt 0:02:22]} Qd4 {[%emt 0:04:31]} 31. Qe2 {[%emt 0:12:07]} Qe4 {[%emt 0:01:27]} 32. Re3 {[%emt 0:00:07]} Rxf5 {[%emt 0:00:52]} 33. Rxf5 {[%emt 0:01:15]} Qxf5 {[%emt 0:00:07]} 34. a3 {[%emt 0:00:30]} Qf1+ {[%emt 0:00:18]} 35. Qxf1 {[%emt 0:00:09]} Rxf1+ {[%emt 0:00:05]} 36. Ka2 {[%emt 0:00:02]} h5 {[%emt 0:01:47]} 37. axb4 {[%emt 0:00:12]} axb4 {[%emt 0:00:07]} 38. Kb3 {[%emt 0:00:04]} Rf2 {[%emt 0:00:32]} 39. Rd3 {[%emt 0:00:52]} h4 {[%emt 0:00:10]} 40. Rxd5 {[%emt 0:01:07]} h3 {[%emt 0:00:10]} 41. Rd3 {[%emt 0:00:06]} h2 {[%emt 0:00:30]} 42. Rh3 {[%emt 0:00:04]} g5 {[%emt 0:00:32]} 43. c4 {[%emt 0:00:57]} bxc3 {[%emt 0:00:08]} 44. Kxc3 {[%emt 0:00:04]} g4 {[%emt 0:00:05]} 45. Rh4 {[%emt 0:00:19]} Kf7 {[%emt 0:00:31]} 46. Kd4 {[%emt 0:01:00]} g3 {[%emt 0:01:11]} 47. Ke3 {[%emt 0:01:07]} Rf1 {[%emt 0:01:18]} 48. Ke2 {[%emt 0:00:52]} h1=Q {[%emt 0:00:32]} 0-1

[Event "LJ Slovak Open 2022"]
[Site "Liptovsky Jan"]
[Date "2022.06.24"]
[Round "3.12"]
[White "Volek, Jan"]
[Black "Rucek, Kristian"]
[Result "0-1"]
[ECO "C01"]
[WhiteElo "1687"]
[BlackElo "2128"]
[Annotator "NA RC"]
[PlyCount "34"]
[EventDate "2022.06.23"]
[EventType "swiss"]
[EventCountry "SVK"]
[SourceTitle "playchess.com"]
[Source "ChessBase"]
[SourceQuality "1"]
[TimeControl "3600+30"]

1. e4 {[%emt 0:00:05]} e6 {[%emt 0:00:08]} 2. Nc3 {[%emt 0:00:20]} d5 {[%emt 0:00:09]} 3. exd5 {[%emt 0:00:45]} exd5 {[%emt 0:00:06]} 4. d4 {[%emt 0:00:31]} Nf6 {[%emt 0:00:25]} 5. Bg5 {[%emt 0:01:07]} c6 {[%emt 0:00:51]} 6. Qe2+ {[%emt 0:00:57]} Be6 {[%emt 0:00:20]} 7. f4 {[%emt 0:01:50]} Qe7 {[%emt 0:05:23]} 8. O-O-O {[%emt 0:07:17]} Nbd7 {[%emt 0:01:25]} 9. Nf3 {[%emt 0:02:26]} O-O-O {[%emt 0:00:50]} 10. Ne5 {[%emt 0:00:52]} Qe8 {[%emt 0:13:15]} 11. g4 {[%emt 0:01:20]} Nxe5 {[%emt 0:04:53]} 12. fxe5 {[%emt 0:05:28]} Bxg4 {[%emt 0:00:28]} 13. Qd2 {[%emt 0:03:12]} Bxd1 {[%emt 0:00:44]} 14. exf6 {[%emt 0:00:28]} Bg4 {[%emt 0:04:40]} 15. fxg7 {[%emt 0:01:46]} Bxg7 {[%emt 0:00:29]} 16. Bxd8 {[%emt 0:00:22]} Bh6 {[%emt 0:00:21]} 17. Rg1 {[%emt 0:09:29]} Qe1+ {[%emt 0:00:17]} 0-1

[Event "LJ Slovak Open 2022"]
[Site "Liptovsky Jan"]
[Date "2022.06.24"]
[Round "3.13"]
[White "Valko, Michal"]
[Black "Bombek, Peter"]
[Result "1/2-1/2"]
[ECO "B12"]
[WhiteElo "1906"]
[BlackElo "2111"]
[Annotator "NA RC"]
[PlyCount "88"]
[EventDate "2022.06.23"]
[EventType "swiss"]
[EventCountry "SVK"]
[SourceTitle "playchess.com"]
[Source "ChessBase"]
[SourceQuality "1"]
[TimeControl "3600+30"]

1. e4 {[%emt 0:01:35]} c6 {[%emt 0:00:27]} 2. d4 {[%emt 0:01:28]} d5 {[%emt 0:00:05]} 3. e5 {[%emt 0:00:54]} c5 {[%emt 0:00:14]} 4. dxc5 {[%emt 0:00:10]} e6 {[%emt 0:00:06]} 5. Be3 {[%emt 0:01:07]} Nd7 {[%emt 0:00:23]} 6. Nf3 {[%emt 0:00:20]} Bxc5 {[%emt 0:00:34]} 7. Bxc5 {[%emt 0:00:09]} Nxc5 {[%emt 0:00:05]} 8. Nc3 {[%emt 0:00:43]} Ne7 {[%emt 0:03:09]} 9. Qd4 {[%emt 0:02:02]} Qb6 {[%emt 0:02:02]} 10. O-O-O {[%emt 0:01:15]} Bd7 {[%emt 0:05:01]} 11. Qg4 {[%emt 0:03:32]} Nf5 {[%emt 0:06:09]} 12. Nd4 {[%emt 0:02:24]} h5 {[%emt 0:02:55]} 13. Qf4 {[%emt 0:02:42]} g5 {[%emt 0:02:56]} 14. Qd2 {[%emt 0:00:45]} Nxd4 {[%emt 0:01:07]} 15. Qxd4 {[%emt 0:00:02]} Bc6 {[%emt 0:08:08]} 16. h4 {[%emt 0:03:48]} g4 {[%emt 0:02:02]} 17. f3 {[%emt 0:00:19]} gxf3 {[%emt 0:01:25]} 18. gxf3 {[%emt 0:00:03]} O-O-O {[%emt 0:01:14]} 19. Be2 {[%emt 0:01:38]} Nd7 {[%emt 0:05:55]} 20. Qxb6 {[%emt 0:01:25]} axb6 {[%emt 0:00:09]} 21. f4 {[%emt 0:00:19]} d4 {[%emt 0:00:15]} 22. Nb5 {[%emt 0:01:44]} Bxh1 {[%emt 0:01:26]} 23. Nd6+ {[%emt 0:00:56]} Kc7 {[%emt 0:01:03]} 24. Rxh1 {[%emt 0:00:07]} Rdf8 {[%emt 0:03:53]} 25. Rd1 {[%emt 0:01:23]} f6 {[%emt 0:01:18]} 26. Nb5+ {[%emt 0:03:22]} Kb8 {[%emt 0:00:40]} 27. Nxd4 {[%emt 0:02:16]} Nc5 {[%emt 0:00:49]} 28. b4 {[%emt 0:05:50]} fxe5 {[%emt 0:00:45]} 29. fxe5 {[%emt 0:00:28]} Rf2 {[%emt 0:02:19]} 30. Bxh5 {[%emt 0:06:16]} Nd7 {[%emt 0:06:46]} 31. Bg4 {[%emt 0:02:17]} Rxh4 {[%emt 0:01:27]} 32. Bxe6 {[%emt 0:01:16]} Nxe5 {[%emt 0:00:17]} 33. Bb3 {[%emt 0:04:38]} Nc6 {[%emt 0:01:49]} 34. Nxc6+ {[%emt 0:06:49]} bxc6 {[%emt 0:00:05]} 35. a3 {[%emt 0:00:05]} Kc7 {[%emt 0:00:27]} 36. Kb2 {[%emt 0:00:41]} Rf6 {[%emt 0:01:17]} 37. Re1 {[%emt 0:01:18]} b5 {[%emt 0:02:12]} 38. Rd1 {[%emt 0:01:49]} Kb6 {[%emt 0:00:50]} 39. Re1 {[%emt 0:00:17]} Rd6 {[%emt 0:02:44]} 40. Rf1 {[%emt 0:01:17]} Rhd4 {[%emt 0:01:00]} 41. Rf5 {[%emt 0:00:26]} Rh6 {[%emt 0:00:43]} 42. Re5 {[%emt 0:00:32]} Rdh4 {[%emt 0:00:13]} 43. Rg5 {[%emt 0:00:11]} R4h5 {[%emt 0:00:25]} 44. Rg8 {[%emt 0:01:03]} Rh8 {[%emt 0:01:06]} 1/2-1/2

[Event "LJ Slovak Open 2022"]
[Site "Liptovsky Jan"]
[Date "2022.06.24"]
[Round "3.14"]
[White "Chlpek, Daniel"]
[Black "Kulich, Filip"]
[Result "1/2-1/2"]
[ECO "D17"]
[WhiteElo "2030"]
[BlackElo "1682"]
[Annotator "NA"]
[PlyCount "75"]
[EventDate "2022.06.23"]
[EventType "swiss"]
[EventCountry "SVK"]
[SourceTitle "playchess.com"]
[Source "ChessBase"]
[SourceQuality "1"]
[TimeControl "3600+30"]

1. c4 {[%emt 0:00:08]} c6 {[%emt 0:00:08]} 2. d4 {[%emt 0:00:14]} d5 {[%emt 0:00:08]} 3. Nf3 {[%emt 0:00:07]} Nf6 {[%emt 0:00:25]} 4. Nc3 {[%emt 0:00:11]} dxc4 {[%emt 0:00:16]} 5. a4 {[%emt 0:00:16]} Bf5 {[%emt 0:00:19]} 6. Ne5 {[%emt 0:01:15]} Nbd7 {[%emt 0:01:02]} 7. Nxc4 {[%emt 0:00:07]} e6 {[%emt 0:00:28]} 8. g3 {[%emt 0:01:40]} Bb4 {[%emt 0:02:49]} 9. Bg2 {[%emt 0:00:26]} O-O {[%emt 0:02:19]} 10. O-O {[%emt 0:00:07]} Nb6 {[%emt 0:02:25]} 11. Ne5 {[%emt 0:03:49]} Qe7 {[%emt 0:03:49]} 12. a5 {[%emt 0:03:18]} Nbd7 {[%emt 0:10:02]} 13. Nd3 {[%emt 0:00:23]} Bxd3 {[%emt 0:00:58]} 14. Qxd3 {[%emt 0:00:12]} a6 {[%emt 0:01:04]} 15. Qc4 {[%emt 0:03:17]} Rad8 {[%emt 0:06:35]} 16. Ra4 {[%emt 0:01:04]} Bd6 {[%emt 0:00:39]} 17. e4 {[%emt 0:01:34]} e5 {[%emt 0:02:24]} 18. d5 {[%emt 0:06:18]} b5 {[%emt 0:03:26]} 19. axb6 {[%emt 0:02:11]} Nxb6 {[%emt 0:00:29]} 20. Qxa6 {[%emt 0:02:45]} Nxa4 {[%emt 0:00:27]} 21. Qxa4 {[%emt 0:00:11]} cxd5 {[%emt 0:00:45]} 22. exd5 {[%emt 0:02:09]} Qd7 {[%emt 0:01:04]} 23. Qc2 {[%emt 0:00:40]} Bb4 {[%emt 0:00:38]} 24. Bg5 {[%emt 0:00:39]} Be7 {[%emt 0:00:58]} 25. Rd1 {[%emt 0:01:12]} h6 {[%emt 0:01:31]} 26. Be3 {[%emt 0:08:00]} Bd6 {[%emt 0:02:01]} 27. h3 {[%emt 0:02:04]} Rb8 {[%emt 0:02:08]} 28. Qe2 {[%emt 0:02:05]} Bb4 {[%emt 0:01:51]} 29. g4 {[%emt 0:03:52]} Ne8 {[%emt 0:04:10]} 30. Ne4 {[%emt 0:05:29]} f5 {[%emt 0:03:15]} 31. gxf5 {[%emt 0:00:09]} Qxf5 {[%emt 0:00:32]} 32. Ng3 {[%emt 0:02:12]} Qf6 {[%emt 0:01:18]} 33. Qg4 {[%emt 0:01:17]} Bd6 {[%emt 0:03:27]} 34. Ne4 {[%emt 0:01:47]} Qf5 {[%emt 0:01:33]} 35. Qxf5 {[%emt 0:00:05]} Rxf5 {[%emt 0:00:18]} 36. Rc1 {[%emt 0:00:14]} Be7 {[%emt 0:01:05]} 37. Rc6 {[%emt 0:01:17]} Rd8 {[%emt 0:02:10]} 38. Ng3 {[%emt 0:07:42]} 1/2-1/2

[Event "LJ Slovak Open 2022"]
[Site "Liptovsky Jan"]
[Date "2022.06.24"]
[Round "3.15"]
[White "Giertli, Vladimir"]
[Black "Babjak, Samuel"]
[Result "1-0"]
[ECO "D02"]
[WhiteElo "1988"]
[BlackElo "1577"]
[Annotator "NA RC"]
[PlyCount "69"]
[EventDate "2022.06.23"]
[EventType "swiss"]
[EventCountry "SVK"]
[SourceTitle "playchess.com"]
[Source "ChessBase"]
[SourceQuality "1"]
[TimeControl "3600+30"]

1. Nf3 {[%emt 0:00:26]} d5 {[%emt 0:00:05]} 2. g3 {[%emt 0:01:02]} Nc6 {[%emt 0:00:14]} 3. d4 {[%emt 0:02:32]} Bg4 {[%emt 0:00:26]} 4. c3 {[%emt 0:00:55]} Qd7 {[%emt 0:02:16]} 5. h3 {[%emt 0:00:15]} f6 {[%emt 0:01:39]} 6. Nbd2 {[%emt 0:04:36]} Bf5 {[%emt 0:01:48]} 7. b4 {[%emt 0:00:31]} a6 {[%emt 0:03:21]} 8. g4 {[%emt 0:01:49]} Bg6 {[%emt 0:00:47]} 9. e3 {[%emt 0:05:05]} e5 {[%emt 0:03:57]} 10. b5 {[%emt 0:00:39]} axb5 {[%emt 0:00:28]} 11. Bxb5 {[%emt 0:00:41]} e4 {[%emt 0:00:19]} 12. Nh4 {[%emt 0:08:48]} Bf7 {[%emt 0:00:30]} 13. a4 {[%emt 0:15:13]} h5 {[%emt 0:01:01]} 14. gxh5 {[%emt 0:00:30]} Rxh5 {[%emt 0:07:39]} 15. Ng2 {[%emt 0:00:01]} Rxh3 {[%emt 0:00:44]} 16. Rxh3 {[%emt 0:00:02]} Qxh3 {[%emt 0:00:08]} 17. Nf4 {[%emt 0:00:38]} Qh1+ {[%emt 0:01:57]} 18. Nf1 {[%emt 0:00:01]} g5 {[%emt 0:01:44]} 19. Ne2 {[%emt 0:00:02]} Bd6 {[%emt 0:03:05]} 20. a5 {[%emt 0:02:00]} Nge7 {[%emt 0:02:54]} 21. Ba3 {[%emt 0:06:17]} Rxa5 {[%emt 0:10:31]} 22. Bxd6 {[%emt 0:01:01]} Rxa1 {[%emt 0:00:07]} 23. Qxa1 {[%emt 0:00:14]} cxd6 {[%emt 0:00:07]} 24. Qa8+ {[%emt 0:00:15]} Kd7 {[%emt 0:00:05]} 25. Qxb7+ {[%emt 0:00:16]} Ke6 {[%emt 0:00:14]} 26. Bxc6 {[%emt 0:00:54]} Nxc6 {[%emt 0:00:43]} 27. Qxc6 {[%emt 0:00:02]} Bh5 {[%emt 0:00:51]} 28. Neg3 {[%emt 0:00:44]} Qf3 {[%emt 0:00:31]} 29. Nxh5 {[%emt 0:00:17]} Qxh5 {[%emt 0:00:04]} 30. Ng3 {[%emt 0:00:33]} Qg6 {[%emt 0:01:44]} 31. c4 {[%emt 0:00:36]} dxc4 {[%emt 0:00:41]} 32. Nxe4 {[%emt 0:00:55]} Qh5 {[%emt 0:02:27]} 33. Qxd6+ {[%emt 0:00:23]} Kf7 {[%emt 0:00:21]} 34. Qxf6+ {[%emt 0:00:41]} Kg8 {[%emt 0:00:07]} 35. Qxg5+ {[%emt 0:00:56]} 1-0

[Event "LJ Slovak Open 2022"]
[Site "Liptovsky Jan"]
[Date "2022.06.24"]
[Round "3.16"]
[White "Vastik, Lukas"]
[Black "Bakalar, Jan"]
[Result "1/2-1/2"]
[ECO "B13"]
[WhiteElo "1738"]
[BlackElo "1916"]
[Annotator "NA RC"]
[PlyCount "28"]
[EventDate "2022.06.23"]
[EventType "swiss"]
[EventCountry "SVK"]
[SourceTitle "playchess.com"]
[Source "ChessBase"]
[SourceQuality "1"]
[TimeControl "3600+30"]

1. e4 {[%emt 0:00:03]} d5 {[%emt 0:01:05]} 2. exd5 {[%emt 0:00:15]} Nf6 {[%emt 0:00:02]} 3. c4 {[%emt 0:02:05]} c6 {[%emt 0:00:46]} 4. Nc3 {[%emt 0:01:49]} cxd5 {[%emt 0:02:24]} 5. d4 {[%emt 0:00:14]} Nc6 {[%emt 0:00:42]} 6. Be3 {[%emt 0:00:59]} e6 {[%emt 0:01:58]} 7. Nf3 {[%emt 0:00:25]} Bb4 {[%emt 0:02:56]} 8. a3 {[%emt 0:01:30]} Bxc3+ {[%emt 0:05:39]} 9. bxc3 {[%emt 0:00:05]} Ne4 {[%emt 0:01:01]} 10. Qb3 {[%emt 0:03:20]} O-O {[%emt 0:01:16]} 11. cxd5 {[%emt 0:01:02]} exd5 {[%emt 0:00:13]} 12. Be2 {[%emt 0:02:37]} Na5 {[%emt 0:02:39]} 13. Qb4 {[%emt 0:02:06]} Be6 {[%emt 0:04:11]} 14. O-O {[%emt 0:01:16]} Rc8 {[%emt 0:01:20]} 1/2-1/2

[Event "LJ Slovak Open 2022"]
[Site "Liptovsky Jan"]
[Date "2022.06.24"]
[Round "3.17"]
[White "Korenova, Simona"]
[Black "Freibergs, Andrejs"]
[Result "0-1"]
[ECO "A21"]
[WhiteElo "1895"]
[BlackElo "1526"]
[Annotator "NA RC"]
[PlyCount "98"]
[EventDate "2022.06.23"]
[EventType "swiss"]
[EventCountry "SVK"]
[SourceTitle "playchess.com"]
[Source "ChessBase"]
[SourceQuality "1"]
[TimeControl "3600+30"]

1. c4 {[%emt 0:00:09]} e5 {[%emt 0:00:12]} 2. Nc3 {[%emt 0:00:16]} Bb4 {[%emt 0:00:09]} 3. Qc2 {[%emt 0:01:02]} Bxc3 {[%emt 0:02:30]} 4. bxc3 {[%emt 0:00:52]} d6 {[%emt 0:00:52]} 5. g3 {[%emt 0:00:21]} Nc6 {[%emt 0:00:49]} 6. Bg2 {[%emt 0:00:28]} Nge7 {[%emt 0:00:30]} 7. Rb1 {[%emt 0:01:49]} O-O {[%emt 0:02:24]} 8. Nf3 {[%emt 0:00:26]} f6 {[%emt 0:03:31]} 9. O-O {[%emt 0:02:24]} Rb8 {[%emt 0:01:15]} 10. d4 {[%emt 0:02:32]} Bf5 {[%emt 0:04:50]} 11. e4 {[%emt 0:00:36]} Bg4 {[%emt 0:00:14]} 12. d5 {[%emt 0:04:26]} Na5 {[%emt 0:01:35]} 13. Qa4 {[%emt 0:04:36]} b6 {[%emt 0:01:58]} 14. Nd2 {[%emt 0:07:32]} f5 {[%emt 0:09:37]} 15. f3 {[%emt 0:07:11]} Bh5 {[%emt 0:00:44]} 16. exf5 {[%emt 0:07:22]} Nxf5 {[%emt 0:00:22]} 17. Ne4 {[%emt 0:00:39]} h6 {[%emt 0:03:19]} 18. g4 {[%emt 0:03:44]} Be8 {[%emt 0:00:25]} 19. Qc2 {[%emt 0:00:55]} Nh4 {[%emt 0:01:21]} 20. g5 {[%emt 0:02:57]} h5 {[%emt 0:02:27]} 21. Qe2 {[%emt 0:03:10]} Ng6 {[%emt 0:02:18]} 22. Bh3 {[%emt 0:01:42]} Nf4 {[%emt 0:02:54]} 23. Bxf4 {[%emt 0:00:35]} Rxf4 {[%emt 0:00:13]} 24. Kh1 {[%emt 0:01:44]} Bg6 {[%emt 0:01:20]} 25. Rg1 {[%emt 0:01:05]} Kh7 {[%emt 0:00:53]} 26. Rbf1 {[%emt 0:00:50]} Nb7 {[%emt 0:02:51]} 27. Nf2 {[%emt 0:06:19]} Nc5 {[%emt 0:01:36]} 28. Bg2 {[%emt 0:01:24]} Rf7 {[%emt 0:07:00]} 29. Qe3 {[%emt 0:01:59]} Qd7 {[%emt 0:01:17]} 30. Nh3 {[%emt 0:00:46]} Nd3 {[%emt 0:01:48]} 31. f4 {[%emt 0:01:04]} Nxf4 {[%emt 0:02:42]} 32. Nxf4 {[%emt 0:00:16]} exf4 {[%emt 0:00:08]} 33. Rxf4 {[%emt 0:00:20]} Re8 {[%emt 0:00:11]} 34. Qg3 {[%emt 0:01:22]} Rxf4 {[%emt 0:00:24]} 35. Qxf4 {[%emt 0:00:03]} Qf5 {[%emt 0:00:05]} 36. Qh4 {[%emt 0:02:10]} Re4 {[%emt 0:02:45]} 37. Bxe4 {[%emt 0:00:53]} Qxe4+ {[%emt 0:00:04]} 38. Qxe4 {[%emt 0:00:04]} Bxe4+ {[%emt 0:00:03]} 39. Rg2 {[%emt 0:00:06]} Kg6 {[%emt 0:00:14]} 40. Kg1 {[%emt 0:02:51]} Bxg2 {[%emt 0:00:05]} 41. Kxg2 {[%emt 0:00:04]} Kxg5 {[%emt 0:00:03]} 42. Kg3 {[%emt 0:00:19]} h4+ {[%emt 0:00:36]} 43. Kf3 {[%emt 0:01:45]} Kf5 {[%emt 0:00:21]} 44. h3 {[%emt 0:00:30]} g5 {[%emt 0:00:07]} 45. a3 {[%emt 0:00:28]} a6 {[%emt 0:00:26]} 46. a4 {[%emt 0:00:08]} a5 {[%emt 0:00:04]} 47. Kf2 {[%emt 0:00:25]} g4 {[%emt 0:00:09]} 48. hxg4+ {[%emt 0:00:13]} Kxg4 {[%emt 0:00:04]} 49. Kg2 {[%emt 0:00:16]} Kf4 {[%emt 0:00:04]} 0-1

[Event "LJ Slovak Open 2022"]
[Site "Liptovsky Jan"]
[Date "2022.06.24"]
[Round "3.18"]
[White "Ziaran, Viliam"]
[Black "Kulich, Daniel"]
[Result "1-0"]
[ECO "D04"]
[WhiteElo "1832"]
[BlackElo "1648"]
[Annotator "NA"]
[PlyCount "66"]
[EventDate "2022.06.23"]
[EventType "swiss"]
[EventCountry "SVK"]
[SourceTitle "playchess.com"]
[Source "ChessBase"]
[SourceQuality "1"]
[TimeControl "3600+30"]

1. d4 {[%emt 0:04:57]} d5 {[%emt 0:00:37]} 2. e3 {[%emt 0:00:07]} Bf5 {[%emt 0:00:23]} 3. Bd3 {[%emt 0:00:12]} Bxd3 {[%emt 0:00:41]} 4. Qxd3 {[%emt 0:00:08]} c6 {[%emt 0:02:41]} 5. Nf3 {[%emt 0:00:17]} Nf6 {[%emt 0:00:16]} 6. Nbd2 {[%emt 0:00:12]} e6 {[%emt 0:00:20]} 7. O-O {[%emt 0:00:22]} Bd6 {[%emt 0:00:20]} 8. e4 {[%emt 0:01:29]} dxe4 {[%emt 0:01:27]} 9. Nxe4 {[%emt 0:00:50]} Be7 {[%emt 0:01:45]} 10. Bf4 {[%emt 0:00:58]} O-O {[%emt 0:02:29]} 11. h3 {[%emt 0:02:05]} Nxe4 {[%emt 0:02:14]} 12. Qxe4 {[%emt 0:00:07]} Bd6 {[%emt 0:00:33]} 13. Bg5 {[%emt 0:02:36]} Be7 {[%emt 0:02:15]} 14. Bf4 {[%emt 0:00:10]} Bd6 {[%emt 0:00:41]} 15. Ng5 {[%emt 0:00:52]} g6 {[%emt 0:03:01]} 16. Nxe6 {[%emt 0:03:38]} fxe6 {[%emt 0:17:24]} 17. Qxe6+ {[%emt 0:00:12]} Rf7 {[%emt 0:00:11]} 18. Qxd6 {[%emt 0:02:18]} Nd7 {[%emt 0:03:54]} 19. Rfe1 {[%emt 0:01:16]} Rf6 {[%emt 0:00:49]} 20. Qc7 {[%emt 0:00:50]} Qxc7 {[%emt 0:10:41]} 21. Bxc7 {[%emt 0:00:13]} Raf8 {[%emt 0:00:21]} 22. f3 {[%emt 0:03:27]} Nb6 {[%emt 0:04:08]} 23. Bxb6 {[%emt 0:00:15]} axb6 {[%emt 0:00:07]} 24. Re7 {[%emt 0:00:16]} R8f7 {[%emt 0:01:58]} 25. Rae1 {[%emt 0:01:17]} Rd6 {[%emt 0:00:19]} 26. c3 {[%emt 0:00:46]} c5 {[%emt 0:00:18]} 27. Rxf7 {[%emt 0:00:30]} Kxf7 {[%emt 0:00:08]} 28. Re4 {[%emt 0:00:32]} Kf6 {[%emt 0:01:34]} 29. Kf2 {[%emt 0:00:13]} h5 {[%emt 0:00:09]} 30. h4 {[%emt 0:00:56]} Rd8 {[%emt 0:00:45]} 31. Ke3 {[%emt 0:00:29]} Rc8 {[%emt 0:00:59]} 32. g3 {[%emt 0:02:31]} Kf5 {[%emt 0:00:48]} 33. a3 {[%emt 0:01:22]} cxd4+ {[%emt 0:00:24]} 1-0